bitfinex/quotes_ETHUSD_20251108
["timestamp","ask_amount","ask_price","bid_price","bid_amount"]
[1762564218432,0.002,3440.3,3440.2,1.1616]
[1762564219328,2.90872325,3440.3,3440.2,1.1616]
[1762564220326,0.002,3440.3,3440.2,1.1616]
[1762564224357,0.002,3440.3,3440.2,4.06840774]
[1762564225929,0.002,3440.3,3440.2,1.1616]
[1762564227961,2.90872325,3440.3,3440.2,1.1616]
[1762564228268,0.002,3440.3,3440.2,1.1616]
[1762564229423,2.90872325,3440.3,3440.2,1.1616]
[1762564229627,2.90872325,3440.3,3440.2,0.6641]
[1762564230065,2.90872325,3440.3,3440.2,1.1616]
[1762564230438,2.90872325,3440.3,3440.2,0.4825]
[1762564230638,0.1448,3440.2,3440.0,0.1816]
[1762564230838,0.002,3440.3,3440.2,0.4825]
[1762564231046,0.002,3440.3,3440.2,0.98]
[1762564231976,2.90872325,3440.3,3440.2,0.4825]
[1762564232144,0.002,3440.3,3440.2,0.4825]
[1762564232774,0.002,3440.3,3440.2,0.9786]
[1762564233772,0.002,3440.3,3440.2,3.88540774]
[1762564233968,0.002,3440.3,3440.2,0.9786]
[1762564235356,0.52916144,3440.3,3439.9,0.001]
[1762564235556,0.1448,3440.0,3439.9,0.001]
[1762564235938,3.81318074,3440.0,3439.9,0.001]
[1762564236363,5.07289274,3440.0,3439.9,0.001]
[1762564236637,3.31315694,3439.2,3439.1,0.006]
[1762564236954,4.57303804,3439.0,3438.9,0.001]
[1762564237158,6.00283804,3439.0,3438.9,0.001]
[1762564239074,4.57371463,3438.2,3438.1,0.005]
[1762564239395,5.27421463,3438.2,3438.1,0.005]
[1762564239537,4.57396843,3437.9,3437.8,0.001]
[1762564239745,4.81096843,3437.9,3437.8,0.001]
[1762564240041,1.902216,3437.9,3437.8,0.001]
[1762564240240,4.81096843,3437.9,3437.8,0.001]
[1762564240680,1.902216,3437.9,3437.8,0.001]
[1762564240840,5.15465917,3437.9,3437.8,0.001]
[1762564241339,2.00890674,3437.9,3437.8,0.001]
[1762564241541,0.405504,3437.9,3437.8,0.001]
[1762564241863,0.1843,3439.1,3437.8,0.001]
[1762564241864,2.90868946,3438.0,3437.8,0.001]
[1762564242076,2.90860093,3438.1,3437.8,0.001]
[1762564242740,2.90867602,3438.0,3437.8,0.001]
[1762564242940,3.57115643,3437.9,3437.8,0.001]
[1762564243169,4.26763753,3437.9,3437.8,0.001]
[1762564243638,4.75033753,3437.9,3437.8,0.001]
[1762564243840,6.01004953,3437.9,3437.8,0.001]
[1762564245741,5.52734953,3437.9,3437.8,0.001]
[1762564246371,2.6185971,3437.9,3437.8,0.001]
[1762564246550,5.27044953,3437.9,3437.8,0.001]
[1762564246751,4.16846443,3437.9,3437.8,0.9427]
[1762564246955,4.42536443,3437.9,3437.8,0.001]
[1762564247145,4.83086843,3437.9,3437.8,0.001]
[1762564248154,5.31356843,3437.9,3437.8,0.001]
[1762564249979,4.57396843,3437.9,3437.8,0.001]
[1762564250179,5.39203115,3437.9,3437.8,0.001]
[1762564252282,6.09003115,3437.9,3437.8,0.001]
[1762564252483,6.82963115,3437.9,3437.8,0.001]
[1762564252700,6.34913115,3437.9,3437.8,0.001]
[1762564253552,6.82963115,3437.9,3437.8,0.001]
[1762564255497,6.34693115,3437.9,3437.8,0.001]
[1762564256996,6.82963115,3437.9,3437.8,0.001]
[1762564259694,6.13163115,3437.9,3437.8,0.001]
[1762564259882,6.09003115,3437.9,3437.8,0.001]
[1762564260684,2.90869737,3438.0,3437.8,0.4818]
[1762564260884,2.90816029,3438.6,3438.5,0.4808]
[1762564261087,2.90816029,3438.6,3438.5,1.1293]
[1762564261296,3.31366429,3438.6,3438.5,1.1293]
[1762564261465,3.31366429,3438.6,3438.5,0.6684]
[1762564261663,3.31366429,3438.6,3438.5,1.1293]
[1762564261866,0.67100135,3439.2,3438.5,1.1293]
[1762564262107,2.90808217,3438.7,3438.5,1.1293]
[1762564262709,0.405504,3438.7,3438.6,0.9277]
[1762564262892,3.60543097,3439.5,3438.6,0.9277]
[1762564263209,2.90804325,3438.8,3438.6,0.9277]
[1762564263508,2.90807572,3438.7,3438.6,0.4742]
[1762564265114,0.405504,3439.1,3438.6,0.4742]
[1762564265322,0.405504,3439.0,3438.5,0.1876]
[1762564265522,0.1843,3440.1,3438.9,3.38205453]
[1762564265726,1.259712,3440.2,3439.1,0.4742]
[1762564265886,2.90742124,3439.5,3439.1,0.4742]
[1762564266083,1.264712,3439.9,3439.2,0.6377]
[1762564266318,2.90741844,3439.5,3439.4,0.4742]
[1762564266722,2.90741844,3439.5,3439.4,0.9277]
[1762564267728,2.90741844,3439.5,3438.5,0.1876]
[1762564267729,2.90812983,3438.7,3438.5,0.1876]
[1762564267932,2.90800631,3438.8,3438.5,0.6411]
[1762564268311,2.90800631,3438.8,3438.7,0.4742]
[1762564268492,2.90800631,3438.8,3438.7,0.9277]
[1762564268696,0.4502,3439.9,3438.7,0.9277]
[1762564268936,0.405504,3439.2,3438.9,0.4742]
[1762564269136,0.005,3439.9,3439.1,0.6584]
[1762564269302,2.91206125,3439.9,3439.8,0.4742]
[1762564269498,0.005,3439.9,3439.8,0.4742]
[1762564269817,0.005,3439.9,3439.8,0.9277]
[1762564270018,0.005,3439.9,3439.8,3.83484576]
[1762564271430,0.005,3439.9,3439.8,0.4742]
[1762564271431,2.91206125,3439.9,3439.8,0.4742]
[1762564271607,3.49396412,3439.9,3439.8,0.4742]
[1762564272808,2.91206125,3439.9,3439.8,0.4742]
[1762564273133,0.005,3439.9,3439.8,0.4742]
[1762564273338,0.005,3439.9,3439.8,0.9277]
[1762564274229,2.91206125,3439.9,3439.8,0.9277]
[1762564274433,2.91206125,3439.9,3439.8,0.4742]
[1762564274597,0.005,3439.9,3439.8,0.9277]
[1762564275034,2.91206125,3439.9,3439.8,0.9277]
[1762564275255,2.91206125,3439.9,3439.8,0.4742]
[1762564275256,3.53450826,3439.9,3439.8,0.4742]
[1762564275850,0.62744701,3439.9,3439.8,0.4742]
[1762564276060,2.91206125,3439.9,3439.8,0.4742]
[1762564276466,0.005,3439.9,3439.8,0.9277]
[1762564276642,0.005,3439.9,3439.8,0.8777]
[1762564276643,2.91206125,3439.9,3439.8,0.8777]
[1762564276847,0.005,3439.9,3439.8,0.8777]
[1762564277219,2.91206125,3439.9,3439.8,0.8777]
[1762564279688,2.90745844,3439.5,3439.1,0.1842]
[1762564279973,0.1448,3439.3,3439.1,0.1842]
[1762564280135,2.90761874,3439.3,3439.1,0.1842]
[1762564280332,0.005,3439.9,3439.2,0.9277]
[1762564280560,0.005,3439.9,3439.8,0.4742]
[1762564281035,0.005,3439.9,3439.8,0.9277]
[1762564281978,0.005,3439.9,3439.8,3.86391721]
[1762564282139,0.005,3439.9,3439.8,4.54103979]
[1762564283067,0.005,3439.9,3439.8,1.60482258]
[1762564283391,0.005,3439.9,3439.8,3.83484576]
[1762564284762,0.005,3439.9,3439.5,0.4535]
[1762564284967,0.1448,3439.6,3439.5,2.90738945]
[1762564285375,0.1448,3439.6,3439.5,3.38158945]
[1762564285805,0.1448,3439.6,3439.5,3.83508945]
[1762564285964,0.1448,3439.6,3439.5,4.50934744]
[1762564286165,0.1448,3439.6,3439.5,4.50935732]
[1762564286367,0.1448,3439.6,3439.5,1.60195799]
[1762564286686,0.1448,3439.6,3439.5,4.50935732]
[1762564287299,0.1448,3439.6,3439.5,0.9277]
[1762564288000,0.1448,3439.6,3439.4,0.001]
[1762564288306,3.31740333,3439.5,3439.4,0.001]
[1762564288797,3.77190333,3439.5,3439.4,0.001]
[1762564291431,3.31740333,3439.5,3439.4,0.001]
[1762564291632,0.007,3439.9,3439.4,0.4752]
[1762564291791,0.007,3439.9,3439.6,0.4742]
[1762564291995,2.90721195,3439.8,3439.6,0.4742]
[1762564292236,2.91408815,3439.9,3439.6,0.4742]
[1762564292738,0.1448,3439.6,3439.4,0.001]
[1762564293027,3.31290333,3439.5,3439.4,0.001]
[1762564294290,0.405504,3439.8,3439.4,0.4895]
[1762564294526,2.90732858,3439.6,3439.4,0.4895]
[1762564294748,2.90720115,3439.8,3439.4,0.4895]
[1762564294948,2.90720115,3439.8,3439.5,0.4885]
[1762564295240,0.007,3439.9,3439.4,0.001]
[1762564295241,0.007,3439.9,3439.7,0.4885]
[1762564295444,0.007,3439.9,3439.8,0.4885]
[1762564295648,0.1448,3439.6,3439.4,0.001]
[1762564295812,2.90726092,3439.7,3439.4,0.001]
[1762564296299,2.90717188,3439.8,3439.4,0.001]
[1762564296494,0.58211606,3439.8,3439.4,0.001]
[1762564296854,0.007,3439.9,3439.4,0.001]
[1762564297194,2.90739933,3439.5,3439.4,0.001]
[1762564297394,3.37299933,3439.5,3439.4,0.001]
[1762564297599,4.10380333,3439.5,3439.4,0.001]
[1762564298728,5.36351533,3439.5,3439.4,0.001]
[1762564299129,6.19059769,3439.5,3439.4,0.001]
[1762564300238,5.86529769,3439.5,3439.4,0.001]
[1762564301139,6.19059769,3439.5,3439.4,0.001]
[1762564301567,6.88859769,3439.5,3439.4,0.001]
[1762564304764,4.13998569,3439.5,3439.4,0.001]
[1762564304919,3.31290333,3439.5,3439.4,0.001]
[1762564305124,2.90739933,3439.5,3439.4,0.001]
[1762564305346,3.31290333,3439.5,3439.4,0.001]
[1762564305682,2.9073148,3439.6,3439.4,0.9385]
[1762564305827,1.261712,3439.8,3439.7,0.4558]
[1762564306032,0.002,3439.8,3439.7,0.9375]
[1762564306367,0.002,3439.8,3439.7,3.84473028]
[1762564306533,0.002,3439.8,3439.7,4.52294296]
[1762564307661,0.002,3439.8,3439.7,0.4558]
[1762564307988,0.002,3439.8,3439.4,0.001]
[1762564307989,0.1448,3439.7,3439.4,0.4827]
[1762564308189,2.90914576,3439.8,3439.4,0.4827]
[1762564308728,0.002,3439.8,3439.4,0.4827]
[1762564308931,0.002,3439.8,3439.7,0.4558]
[1762564309553,0.002,3439.8,3439.7,0.9375]
[1762564311331,0.002,3439.8,3439.7,0.4558]
[1762564311551,2.90914576,3439.8,3439.7,0.4558]
[1762564312290,3.05203212,3439.7,3439.4,0.001]
[1762564312441,2.90723212,3439.7,3439.5,0.4817]
[1762564312778,2.90723212,3439.7,3439.6,0.4558]
[1762564313154,3.05213915,3439.6,3439.4,0.001]
[1762564313352,2.90733915,3439.6,3439.4,0.001]
[1762564313750,0.92484948,3439.5,3439.4,0.001]
[1762564314078,1.84136148,3439.5,3439.4,0.001]
[1762564314241,4.74876081,3439.5,3439.4,0.4568]
[1762564315487,4.74876081,3439.5,3439.4,0.001]
[1762564317885,5.94636481,3439.5,3439.4,0.001]
[1762564318788,5.49746481,3439.5,3439.4,0.001]
[1762564318956,5.94636481,3439.5,3439.4,0.001]
[1762564320371,6.64436481,3439.5,3439.4,0.001]
[1762564320572,6.64436481,3439.5,3439.0,0.001]
[1762564320573,4.57745348,3439.1,3439.0,1e-08]
[1762564320777,12.03084053,3439.1,3439.0,1e-08]
[1762564321001,12.48084053,3439.1,3439.0,1e-08]
[1762564322899,13.05692201,3439.1,3439.0,1e-08]
[1762564323377,13.05692201,3439.1,3438.7,0.001]
[1762564323378,3.31349515,3438.8,3438.7,0.001]
[1762564323609,2.90875243,3437.9,3437.1,0.006]
[1762564323782,11.29879343,3437.9,3437.1,0.006]
[1762564323981,11.76389343,3437.9,3437.1,0.006]
[1762564324208,11.88039144,3437.9,3437.1,0.006]
[1762564324798,3.31569549,3436.2,3435.5,0.001]
[1762564325113,4.59676504,3436.2,3435.5,0.001]
[1762564325314,5.05966504,3436.2,3435.5,0.001]
[1762564325475,4.59676504,3436.2,3435.5,0.001]
[1762564325929,1.68657355,3436.2,3435.5,0.001]
[1762564326085,0.405504,3436.2,3435.5,0.4786]
[1762564326287,0.698,3436.5,3436.1,1.1638]
[1762564326481,0.405504,3436.4,3436.1,1.1638]
[1762564326787,0.405504,3436.4,3436.3,0.4857]
[1762564327180,0.4651,3437.2,3436.3,0.9633]
[1762564327380,3.60724774,3437.4,3436.4,0.4857]
[1762564327693,3.60724774,3437.4,3436.4,0.9633]
[1762564327694,2.90966571,3436.9,3436.4,0.9633]
[1762564327911,2.90968534,3436.8,3436.4,0.9633]
[1762564328115,2.90968534,3436.8,3436.4,0.4857]
[1762564328427,2.90968534,3436.8,3436.5,0.4776]
[1762564328628,4.47958468,3437.4,3436.7,0.4857]
[1762564328812,4.47958468,3437.4,3436.9,0.4857]
[1762564328813,3.31493954,3437.1,3436.9,0.4857]
[1762564329018,0.405504,3437.0,3436.9,0.4857]
[1762564329213,3.31501811,3437.0,3436.5,0.4776]
[1762564329401,0.405504,3437.0,3436.5,0.4776]
[1762564329597,0.405504,3437.1,3436.9,0.4857]
[1762564329822,0.405504,3437.0,3436.9,0.4857]
[1762564330029,0.4651,3437.7,3437.0,0.4857]
[1762564330214,1.259712,3437.4,3437.0,0.4857]
[1762564330423,2.9093629,3437.2,3437.0,0.4857]
[1762564330587,0.698,3437.6,3437.0,0.4857]
[1762564330788,0.405504,3437.5,3437.0,0.4857]
[1762564331020,0.405504,3437.2,3437.0,0.4857]
[1762564331337,1.259712,3437.8,3437.4,0.4857]
[1762564331490,0.698,3438.1,3437.8,0.4857]
[1762564331696,0.698,3438.2,3437.8,0.4857]
[1762564331896,4.57396843,3437.9,3437.8,0.4857]
[1762564332105,2.9090909,3437.5,3437.1,0.1525]
[1762564332317,2.90897476,3437.7,3437.1,0.6301]
[1762564332527,2.90812206,3438.7,3437.7,0.4857]
[1762564332728,0.698,3438.6,3437.8,0.4857]
[1762564333033,2.90875916,3437.9,3437.2,3.41602582]
[1762564333190,2.90869647,3438.0,3437.2,3.41602582]
[1762564333397,0.405504,3437.9,3437.3,0.4776]
[1762564333593,0.405504,3438.1,3437.3,0.4776]
[1762564333896,0.93266254,3438.1,3437.4,2.90914692]
[1762564334097,0.4651,3439.0,3438.0,0.4857]
[1762564334333,3.79711774,3438.9,3438.1,0.4857]
[1762564334505,0.703,3438.9,3438.1,0.4857]
[1762564334727,0.005,3438.9,3438.2,0.70218498]
[1762564334935,2.91290659,3438.9,3438.8,0.4857]
[1762564335249,2.91290659,3438.9,3438.3,0.4776]
[1762564335250,3.05283115,3438.8,3438.3,0.4776]
[1762564335453,2.90803115,3438.8,3438.3,0.4776]
[1762564336014,0.6568628,3438.9,3438.3,0.4776]
[1762564336015,0.005,3438.9,3438.3,0.4776]
[1762564336219,2.90800843,3438.8,3438.3,0.4776]
[1762564336414,0.005,3438.9,3438.3,0.4776]
[1762564336620,2.90851858,3438.2,3437.9,0.4776]
[1762564336861,0.405504,3438.6,3437.9,0.4776]
[1762564337160,2.9083405,3438.4,3438.1,0.6812]
[1762564337657,0.405504,3438.7,3438.3,0.4857]
[1762564337879,0.1741,3438.9,3438.8,2.90799115]
[1762564337880,0.005,3438.9,3438.8,2.90799115]
[1762564338175,0.005,3438.9,3438.8,0.82506912]
[1762564338374,0.005,3438.9,3438.8,0.9633]
[1762564338540,0.1448,3438.8,3438.3,0.4776]
[1762564338719,0.005,3438.9,3438.3,0.4776]
[1762564338922,2.90858322,3438.1,3436.2,0.4776]
[1762564339195,2.90858322,3438.1,3436.1,0.2005]
[1762564339196,3.31429214,3437.9,3436.7,0.1955]
[1762564339318,3.31426375,3437.9,3436.8,0.4776]
[1762564339518,2.90935186,3437.2,3436.8,0.4776]
[1762564339831,0.405504,3437.5,3436.8,0.4776]
[1762564340146,0.702,3437.6,3436.8,0.4776]
[1762564340147,0.405504,3437.3,3437.1,0.4857]
[1762564340320,2.90934481,3437.2,3437.1,0.4857]
[1762564340861,0.405504,3437.3,3437.1,1.1588]
[1762564340862,2.90927641,3437.3,3437.1,1.1588]
[1762564341161,1.445912,3437.9,3437.2,0.4857]
[1762564341323,0.405504,3437.7,3437.2,0.4857]
[1762564341523,0.405504,3437.7,3437.2,0.99239344]
[1762564341723,4.16869195,3437.7,3437.6,0.4857]
[1762564341923,1.259712,3437.7,3437.6,0.4857]
[1762564342153,2.90892166,3437.7,3437.6,0.9633]
[1762564342356,2.90892166,3437.7,3437.6,0.4857]
[1762564342866,4.06291775,3437.7,3437.6,0.4857]
[1762564343026,2.90934481,3437.2,3437.1,0.1955]
[1762564343226,1.01689209,3437.7,3437.1,0.1955]
[1762564343227,2.90900778,3437.6,3437.1,0.1955]
[1762564343469,2.90923576,3437.4,3437.1,0.6812]
[1762564343650,2.90927668,3437.3,3437.1,1.1588]
[1762564343966,2.90928869,3437.3,3437.1,0.6731]
[1762564344275,2.90928869,3437.3,3437.2,0.4857]
[1762564344788,2.9096368,3436.9,3436.7,0.1955]
[1762564345377,2.90965612,3436.9,3436.7,0.1955]
[1762564346443,3.31467953,3437.4,3436.8,0.4857]
[1762564346645,3.31468489,3437.4,3436.8,0.4857]
[1762564346878,2.90926173,3437.3,3436.9,0.4776]
[1762564347175,2.90930403,3437.3,3436.9,0.4776]
[1762564347495,2.90949338,3437.1,3436.9,0.4776]
[1762564347671,1.665216,3437.6,3436.9,0.4776]
[1762564347876,2.90950877,3437.1,3436.9,0.4776]
[1762564348181,2.90926017,3437.3,3436.5,0.1955]
[1762564348358,0.277172,3437.5,3436.5,0.6731]
[1762564348359,2.90952542,3437.0,3436.5,0.6731]
[1762564348816,2.90946396,3437.1,3436.9,0.4857]
[1762564349018,2.90951411,3437.0,3436.9,0.4857]
[1762564349483,2.90944351,3437.1,3436.9,0.9633]
[1762564349677,2.90944351,3437.1,3436.9,0.4776]
[1762564349883,2.90944351,3437.1,3437.0,0.4857]
[1762564350202,0.277172,3437.5,3437.0,0.4857]
[1762564350360,1.259712,3437.8,3437.4,0.6812]
[1762564350674,2.90892166,3437.7,3437.1,0.4776]
[1762564350880,2.90907238,3437.6,3437.1,0.6731]
[1762564351273,2.9088459,3437.8,3437.1,0.6731]
[1762564351274,0.405504,3437.8,3437.1,0.6731]
[1762564351472,0.1448,3437.1,3436.7,0.4776]
[1762564351790,2.90939214,3437.2,3436.7,0.4776]
[1762564352002,2.90935569,3437.2,3437.0,0.4857]
[1762564352301,2.90929361,3437.3,3437.1,0.4857]
[1762564352793,2.90929361,3437.3,3437.2,0.4882]
[1762564353565,0.1853416,3437.7,3437.2,0.9736]
[1762564353768,0.002,3437.9,3437.6,0.4882]
[1762564353969,4.17046443,3437.9,3437.8,0.4882]
[1762564354204,4.87837777,3437.9,3437.8,0.4882]
[1762564354588,2.9090384,3437.6,3437.3,0.4854]
[1762564354899,0.70991334,3437.9,3437.3,0.4854]
[1762564355101,2.90900628,3437.6,3437.5,0.4882]
[1762564355306,2.9091331,3437.5,3437.1,0.1929]
[1762564355605,0.1448,3437.3,3437.1,0.6783]
[1762564355921,2.9091331,3437.5,3437.1,0.6783]
[1762564356069,2.90898641,3437.7,3437.4,0.4882]
[1762564356270,2.90898641,3437.7,3437.4,0.9736]
[1762564357713,3.61867946,3437.9,3437.1,3.10229727]
[1762564357714,0.002,3437.9,3437.1,0.1929]
[1762564357870,0.002,3437.9,3437.8,0.4882]
[1762564358069,0.002,3437.9,3437.8,3.39703704]
[1762564358276,0.002,3437.9,3437.8,3.88243704]
[1762564358574,0.002,3437.9,3437.8,3.91152541]
[1762564358772,0.002,3437.9,3437.8,4.59357806]
[1762564359025,0.1468,3437.9,3437.8,1.65565265]
[1762564359231,0.1468,3437.9,3437.8,4.56448969]
[1762564359376,0.1468,3437.9,3437.8,1.65565265]
[1762564359910,0.1468,3437.9,3437.8,0.9736]
[1762564360310,0.1468,3437.9,3437.8,3.88243704]
[1762564360891,0.002,3437.9,3437.8,3.88243704]
[1762564361626,0.002,3437.9,3437.8,0.9736]
[1762564361772,0.002,3437.9,3437.8,3.88243704]
[1762564362477,0.002,3437.9,3437.8,0.9736]
[1762564363210,0.002,3437.9,3437.8,0.4882]
[1762564363519,0.002,3437.9,3437.3,0.4873]
[1762564363814,0.002,3437.9,3437.2,0.4873]
[1762564364011,0.002,3437.9,3437.3,0.1940912]
[1762564364213,0.002,3437.9,3437.4,2.90912655]
[1762564364531,2.90891462,3437.8,3437.2,0.4873]
[1762564364677,2.90891462,3437.8,3437.2,3.39663983]
[1762564364873,0.002,3437.9,3437.8,2.90883704]
[1762564365120,0.002,3437.9,3437.8,3.99947362]
[1762564365428,0.002,3437.9,3437.8,4.51586199]
[1762564366138,0.002,3437.9,3437.8,1.57793658]
[1762564366338,0.002,3437.9,3437.8,4.48677362]
[1762564367637,0.002,3437.9,3437.8,0.4626]
[1762564367792,0.002,3437.9,3437.8,3.85873704]
[1762564368593,0.002,3437.9,3437.8,3.88782541]
[1762564369099,0.002,3437.9,3437.8,3.85873704]
[1762564369531,0.002,3437.9,3437.8,0.4626]
[1762564369732,0.002,3437.9,3437.8,3.37143704]
[1762564370639,0.002,3437.9,3437.8,3.85873704]
[1762564372493,0.002,3437.9,3437.8,4.53550887]
[1762564372892,0.002,3437.9,3437.8,1.62667183]
[1762564373152,0.002,3437.9,3437.8,4.53550887]
[1762564373349,0.002,3437.9,3437.8,0.4626]
[1762564373536,0.002,3437.9,3437.8,3.37143704]
[1762564373734,0.002,3437.9,3437.5,3.39630883]
[1762564373964,0.1448,3437.5,3437.4,4.16888753]
[1762564374164,0.002,3437.9,3437.5,2.90900726]
[1762564374367,0.002,3437.9,3437.6,2.90899154]
[1762564375063,0.002,3437.9,3437.5,3.39635972]
[1762564375064,0.1448,3437.6,3437.5,3.39635972]
[1762564375269,0.1448,3437.6,3437.5,2.90905972]
[1762564375434,0.1448,3437.6,3437.5,3.37165972]
[1762564375976,0.1448,3437.6,3437.5,3.85895972]
[1762564377766,0.1448,3437.6,3437.5,4.66175119]
[1762564381384,0.002,3437.9,3437.8,2.90883704]
[1762564381696,0.002,3437.9,3437.8,3.40052541]
[1762564381891,0.002,3437.9,3437.8,3.85873704]
[1762564382369,0.002,3437.9,3437.8,5.11844904]
[1762564382576,0.002,3437.9,3437.8,6.30685177]
[1762564384672,0.002,3438.3,3438.2,2.90849863]
[1762564384870,0.002,3438.3,3438.2,3.39338361]
[1762564385078,0.002,3438.3,3438.2,5.10329561]
[1762564385688,0.002,3438.3,3438.2,5.07421063]
[1762564385874,0.002,3438.3,3438.2,6.2124409]
[1762564386180,0.002,3438.3,3438.2,6.18335592]
[1762564387005,0.002,3438.6,3438.5,4.16795687]
[1762564387212,0.002,3438.6,3438.5,4.62375687]
[1762564387380,0.002,3438.6,3438.5,5.07395687]
[1762564387707,0.002,3438.6,3438.5,6.05217148]
[1762564393410,1e-08,3438.9,3438.8,4.57320715]
[1762564393619,1e-08,3438.9,3438.8,5.05808706]
[1762564393917,1e-08,3438.9,3438.8,5.65308706]
[1762564394205,1e-08,3438.9,3438.8,17.08390679]
[1762564394370,0.002,3439.8,3439.7,2.90723028]
[1762564394572,0.002,3439.8,3439.7,4.76754228]
[1762564394782,0.002,3439.8,3439.7,5.21774228]
[1762564397009,1e-08,3439.9,3439.8,10.57122629]
[1762564397173,1e-08,3439.9,3439.8,12.13057158]
[1762564397911,1e-08,3439.9,3439.8,6.18200305]
[1762564406531,1e-08,3439.9,3439.8,5.73180305]
[1762564407633,1e-08,3439.9,3439.8,5.27600305]
[1762564408023,0.25000001,3439.9,3439.8,4.16685776]
[1762564410436,1e-08,3439.9,3439.8,4.16685776]
[1762564411748,0.92010001,3439.9,3439.1,2.90771952]
[1762564412038,0.2523,3439.2,3439.1,2.90767683]
[1762564412438,0.7326,3439.2,3438.7,2.90800192]
[1762564412639,2.90740779,3439.5,3439.4,0.001]
[1762564412944,3.98787258,3439.5,3439.4,0.001]
[1762564413239,4.23567258,3439.5,3439.4,0.001]
[1762564416431,1.32826479,3439.5,3439.4,0.001]
[1762564416745,0.7468,3439.5,3439.4,0.001]
[1762564417111,3.65419933,3439.5,3439.4,0.001]
[1762564418038,4.05970333,3439.5,3439.4,0.001]
[1762564418249,2.90765294,3439.2,3439.1,0.001]
[1762564418449,3.16335294,3439.2,3439.1,0.001]
[1762564418655,4.59887404,3439.2,3439.1,0.001]
[1762564419961,4.59887404,3439.2,3438.1,2.9135794]
[1762564419962,2.90849863,3438.2,3438.1,0.005]
[1762564420146,2.91339863,3438.2,3438.1,0.005]
[1762564420332,3.80980263,3438.2,3438.1,0.005]
[1762564420534,2.90875243,3437.9,3437.8,0.001]
[1762564420720,3.56515643,3437.9,3437.8,0.001]
[1762564420925,4.05605643,3437.9,3437.8,0.001]
[1762564421737,1.147304,3437.9,3437.8,0.001]
[1762564422168,4.05605643,3437.9,3437.8,0.001]
[1762564422347,0.2509,3437.9,3437.8,0.001]
[1762564422857,3.09583441,3438.3,3437.8,2.90976742]
[1762564422858,0.1874,3438.3,3437.8,2.90976742]
[1762564423361,0.2562,3437.9,3437.8,0.001]
[1762564423766,0.7444,3437.9,3437.8,0.001]
[1762564424840,0.2562,3437.9,3437.8,0.001]
[1762564425040,0.1874,3438.3,3437.8,0.4672]
[1762564425265,3.09475662,3439.6,3438.0,2.90866783]
[1762564425266,0.6789,3438.8,3438.0,2.90866783]
[1762564425465,0.6789,3438.8,3437.9,0.4598]
[1762564425466,3.94557397,3438.8,3438.1,2.90851641]
[1762564425778,1.03758136,3438.8,3438.2,2.90848401]
[1762564425981,3.94557504,3438.8,3438.2,2.90848401]
[1762564426378,3.94557504,3438.8,3437.9,0.4598]
[1762564426379,1.03758136,3438.8,3437.9,0.4598]
[1762564426543,0.1448,3438.1,3437.9,0.4598]
[1762564426750,0.1448,3438.1,3438.0,2.90866783]
[1762564426941,0.1448,3438.1,3438.0,3.37486783]
[1762564428995,0.1448,3438.1,3438.0,3.8637545]
[1762564429180,0.1448,3438.1,3438.0,3.83466783]
[1762564429381,0.1448,3438.1,3438.0,4.50911079]
[1762564430595,0.1448,3438.1,3438.0,1.14064296]
[1762564430750,0.1448,3438.1,3438.0,3.37486783]
[1762564431389,0.1448,3438.1,3438.0,3.83466783]
[1762564435872,0.4905,3439.2,3438.6,2.90810342]
[1762564436683,3.39820515,3439.2,3438.7,0.02908075]
[1762564436890,2.90775223,3439.1,3438.7,0.02908075]
[1762564437208,0.4905,3439.1,3438.6,2.90815842]
[1762564437374,0.1448,3438.6,3438.5,2.90821378]
[1762564437571,3.39824359,3439.1,3438.5,2.90821378]
[1762564438012,0.4905,3439.1,3438.6,2.90815177]
[1762564438683,2.90750219,3439.4,3438.3,0.4598]
[1762564438684,0.1874,3439.6,3438.3,0.4598]
[1762564438874,3.39804073,3439.4,3438.8,2.90793559]
[1762564439075,0.4905,3439.4,3438.6,2.9081034]
[1762564439272,0.1448,3438.5,3438.4,3.36812877]
[1762564439694,0.1448,3438.5,3438.4,3.83432877]
[1762564439895,0.1448,3438.5,3438.4,5.09404077]
[1762564440106,0.1874,3439.6,3439.0,2.90777063]
[1762564440307,3.09477936,3439.6,3439.0,2.90781941]
[1762564440481,3.58527936,3439.6,3439.0,2.90781941]
[1762564440680,0.4905,3439.5,3439.1,2.90772814]
[1762564440904,0.4905,3439.5,3438.5,1.719512]
[1762564441105,0.19250001,3439.9,3438.8,2.90799115]
[1762564441341,0.19250001,3439.9,3438.6,0.53217326]
[1762564441342,0.68300001,3439.9,3438.6,3.90008812]
[1762564441542,2.90731763,3439.6,3439.0,2.90777119]
[1762564442044,2.90726354,3439.7,3439.1,2.90772953]
[1762564442242,0.4905,3439.6,3439.1,2.90772953]
[1762564442440,0.4905,3439.6,3439.2,2.90764905]
[1762564443039,0.4905,3439.6,3439.1,2.90770309]
[1762564443256,0.4905,3439.6,3439.0,2.90779448]
[1762564443551,3.39782549,3439.6,3439.0,2.90779448]
[1762564443907,0.2542,3439.1,3438.2,1.259712]
[1762564444115,0.2542,3439.1,3438.9,2.90790287]
[1762564444313,0.2542,3439.1,3439.0,2.90782204]
[1762564445457,0.4882,3439.5,3439.1,2.90769629]
[1762564445658,0.4882,3439.5,3439.0,0.4983]
[1762564445659,0.4882,3439.5,3439.0,3.40607497]
[1762564446410,0.4882,3439.5,3439.1,2.90770781]
[1762564446746,0.68310001,3439.9,3439.4,2.90748382]
[1762564446959,0.4906,3439.8,3439.4,2.90748382]
[1762564447111,0.4906,3439.8,3439.3,2.90751154]
[1762564447311,0.002,3439.5,3439.3,2.90751154]
[1762564447507,0.002,3439.5,3439.4,2.90748386]